fUSD/lending_fUSD_20240518
["ID","MTS","AMOUNT","RATE_DAILY","PERIOD"]
[327437697,1716076232493,-854.70609405,0.00012997,2]
[327437698,1716076232506,-4830.43984845,0.00012997,2]
[327437699,1716076232520,-6018.32790803,0.00012997,2]
[327437700,1716076232533,-1666.21666469,0.00012997,2]
[327437701,1716076232546,-741.8811006,0.00012997,2]
[327437702,1716076232558,-833.80448237,0.00012997,2]
[327437703,1716076232571,-1627.23699014,0.00012997,2]
[327437704,1716076232583,-376.2556118,0.00012997,2]
[327437705,1716076232595,-5902.51031461,0.00012997,2]
[327437706,1716076232607,-10076.94638976,0.00012997,2]
[327437707,1716076232618,-827.62713501,0.00012997,2]
[327437708,1716076232634,-164009.87386915,0.00012997,2]
[327437709,1716076232646,-9394.66720854,0.00012997,2]
[327437710,1716076232657,-854.16488114,0.00012997,2]
[327437711,1716076232670,-464.47486671,0.00012997,2]
[327437712,1716076232681,-1132.38722525,0.00012997,2]
[327437713,1716076232692,-2335.98145631,0.00012997,2]
[327437714,1716076232703,-1381.95190557,0.00012997,2]
[327437715,1716076232714,-331.5,0.00012997,2]
[327437716,1716076232729,-2291.08562381,0.00012997,2]
[327437717,1716076232740,-419.67248778,0.00012997,2]
[327437718,1716076232751,-1224.31720139,0.00012997,2]
[327437719,1716076232766,-308.68743525,0.00012997,2]
[327437720,1716076232777,-925.7606293,0.00012997,2]
[327437721,1716076232788,-153108.79716189,0.00012997,2]
[327437722,1716076232798,-316.54159119,0.00012998,2]
[327437723,1716076232808,-155.0,0.00012998,2]
[327437724,1716076232817,-176.23597455,0.00012998,2]
[327437725,1716076232826,-194.881765,0.00012998,2]
[327437726,1716076232836,-259.8,0.00012998,2]
[327437727,1716076232845,-155.0,0.00012998,2]
[327437728,1716076232854,-344.14475486,0.00012998,2]
[327437729,1716076232864,-155.0,0.00012998,2]
[327437730,1716076232874,-155.0,0.00012998,2]
[327437731,1716076232883,-975721.2516726,0.00012998,2]
[327437732,1716076232894,-31420.96678108,0.00012998,2]
[327437733,1716076232906,-21584.95682334,0.00012998,2]
[327437734,1716076232917,-50044.26308057,0.00012998,2]
[327437748,1716076237840,-271.27245111,0.00012998,2]
[327437755,1716076237899,-1453.88441266,0.00012998,2]
[327437756,1716076237911,-395.53536445,0.00012998,2]
[327437757,1716076237922,-3006.29999994,0.00012998,2]
[327437758,1716076237956,-898430.40451313,0.00012998,2]
[327437759,1716076237966,-248.09073762,0.00012999,2]
[327437760,1716076237976,-150.0,0.00012999,2]
[327437761,1716076237985,-1242467.55249388,0.00013,2]
[327437762,1716076237994,-206.82894028,0.00013173,2]
[327437763,1716076238007,-176.80081464,0.00013273,2]
[327437764,1716076238017,-196.89576948,0.00013773,2]
[327437765,1716076238026,-6159.04793896,0.00013873,2]
[327437766,1716076238035,-156.54,0.00013973,2]
[327437767,1716076238044,-167.82,0.00014588,2]
[327437768,1716076238053,-499.99,0.00014588,2]
[327437769,1716076238063,-3472.69,0.00015089,2]
[327437770,1716076238072,-7978.39318724,0.00015386,2]
[327437771,1716076238082,-2200.0,0.000159,5]
[327437772,1716076238091,-6159.04793888,0.00016293,2]
[327437773,1716076238100,-10198.91,0.00017152,2]
[327437774,1716076238109,-7163.79,0.0001726,6]
[327437775,1716076238119,-152.44,0.00017552,2]
[327437776,1716076238127,-7978.39318724,0.00017874,2]
[327437777,1716076238137,-167.82,0.00018235,2]
[327437778,1716076238146,-6159.04793888,0.00018714,2]
[327437779,1716076238156,-800.0,0.00019154,2]
[327437780,1716076238165,-206.8581792,0.00019656,7]
[327437781,1716076238175,-789.59661747,0.00019666,2]
[327437782,1716076238184,-165.0,0.00019696,2]
[327437783,1716076238193,-561.3789866,0.00019696,2]
[327437785,1716076238203,-174.44799409,0.000199,2]
[327437787,1716076238212,-7978.39318724,0.00020361,2]
[327437789,1716076238222,-624.82,0.00020521,2]
[327437791,1716076238231,-1000.0,0.0002056,2]
[327437793,1716076238241,-6159.04793888,0.00021134,2]
[327437795,1716076238250,-196.9223431,0.00021467,2]
[327437797,1716076238259,-800.0,0.00021548,2]
[327437799,1716076238269,-167.82,0.00021882,2]
[327437801,1716076238279,-2912.81524908,0.0002219,2]
[327437803,1716076238288,-152.71,0.00022494,2]
[327437805,1716076238298,-152.71,0.00022508,2]
[327437807,1716076238307,-152.71,0.00022522,2]
[327437809,1716076238316,-152.71,0.00022537,2]
[327437811,1716076238325,-152.71,0.00022551,2]
[327437813,1716076238335,-152.71,0.00022565,2]
[327437815,1716076238344,-152.71,0.00022579,2]
[327437817,1716076238353,-152.71,0.00022593,2]
[327437819,1716076238362,-152.71,0.00022607,2]
[327437821,1716076238371,-7978.39318724,0.00022848,2]
[327437823,1716076238381,-624.82,0.00023261,2]
[327437825,1716076238391,-6159.04793888,0.00023554,2]
[327437827,1716076238400,-800.0,0.00023942,2]
[327437829,1716076238409,-1047.0,0.00024039,2]
[327437832,1716076238419,-5913.0,0.00024039,2]
[327437833,1716076238428,-1581.0,0.00024039,2]
[327437836,1716076238437,-290.468,0.00024039,2]
[327437838,1716076238447,-5752.0,0.00024039,2]
[327437840,1716076238456,-193.658,0.00024039,2]
[327437841,1716076238465,-252.476,0.00024039,2]
[327437843,1716076238476,-161.0,0.00024039,2]
[327437845,1716076238485,-210.0,0.00024039,2]
[327437847,1716076238494,-161.51,0.00024039,2]
[327437849,1716076238503,-258.242,0.00024039,2]
[327437850,1716076238512,-244.901,0.00024039,2]
[327437852,1716076238522,-258.0,0.00024039,2]
[327437854,1716076238535,-194.448,0.00024039,2]
[327437855,1716076238544,-273.251,0.00024039,2]
[327437857,1716076238554,-152.0,0.00024039,2]
[327437859,1716076238563,-151.964,0.00024039,2]
[327437860,1716076238572,-235.2,0.00024039,2]
[327437861,1716076238582,-1060.0,0.00024039,2]
[327437862,1716076238591,-283.252,0.00024039,2]
[327437863,1716076238600,-8869.28407914,0.00024092,2]
[327437864,1716076238609,-250.0,0.00024658,2]
[327437865,1716076238618,-25191.4502241,0.00024847,2]
[327437866,1716076238628,-360.09365652,0.00024889,2]
[327437867,1716076238637,-360.09365647,0.00024889,2]
[327437868,1716076238646,-360.09365647,0.00024889,2]
[327437869,1716076238655,-360.09365647,0.00024889,2]
[327437870,1716076238668,-360.09365647,0.00024889,2]
[327437871,1716076238677,-360.09365647,0.00024889,2]
[327437872,1716076238687,-24402.06098757,0.00024898,2]
[327437873,1716076238696,-24402.06098748,0.00024898,2]
[327437874,1716076238705,-24402.06098748,0.00024898,2]
[327437875,1716076238715,-24402.06098748,0.00024898,2]
[327437876,1716076238726,-24402.06098748,0.00024898,2]
[327437877,1716076238735,-24402.06098748,0.00024898,2]
[327437878,1716076238744,-150.0,0.00024989,2]
[327437879,1716076238753,-416498.453229,0.0002499,7]
[327437880,1716076238762,-7978.39318724,0.00025335,2]
[327437881,1716076238771,-360.09365647,0.00025353,2]
[327437882,1716076238780,-24402.06098748,0.00025355,2]
[327437883,1716076238790,-250.0,0.00025355,2]
[327437884,1716076238800,-727.79,0.00025591,2]
[327437885,1716076238809,-6159.04793888,0.00025975,2]
[327437886,1716076238818,-624.82,0.00026001,2]
[327437887,1716076238827,-1000.0,0.00026075,2]
[327437888,1716076238836,-800.0,0.00026336,2]
[327437889,1716076238845,-200.0,0.00026499,2]
[327437890,1716076238854,-169.44,0.00026527,2]
[327437891,1716076238863,-157.051908,0.00026748,8]
[327437892,1716076238872,-1577.0,0.00027039,2]
[327437893,1716076238882,-150.0,0.00027039,2]
[327437894,1716076238891,-631.811,0.00027039,2]
[327437895,1716076238900,-157.051908,0.00027148,8]
[327437896,1716076238910,-51222.2639,0.00027296,2]
[327437897,1716076238919,-10000.0,0.00027296,2]
[327437898,1716076238928,-200.0,0.00027348,2]
[327437899,1716076238938,-1000.0,0.00027348,2]
[327437900,1716076238947,-500.0,0.00027348,2]
[327437901,1716076238956,-200.0,0.00027348,2]
[327437902,1716076238965,-1388.88889,0.0002736,2]
[327437903,1716076238974,-150.0,0.00027396,2]
[327437904,1716076238983,-200.0,0.00027397,2]
[327437905,1716076238993,-500.0,0.00027397,2]
[327437906,1716076239004,-500.0,0.00027397,2]
[327437907,1716076239014,-500.0,0.00027397,2]
[327437908,1716076239024,-500.0,0.00027397,2]
[327437909,1716076239033,-500.0,0.00027397,2]
[327437910,1716076239042,-500.0,0.00027397,2]
[327437911,1716076239052,-598.38,0.00027397,2]
[327437912,1716076239061,-500.0,0.00027397,2]
[327437913,1716076239071,-543.75239111,0.00027397,2]
[327437914,1716076239080,-500.0,0.00027397,2]
[327437915,1716076239090,-500.0,0.00027397,2]
[327437916,1716076239099,-500.0,0.00027397,2]
[327437917,1716076239108,-518.85,0.00027397,2]
[327437918,1716076239118,-500.0,0.00027397,2]
[327437919,1716076239127,-500.0,0.00027397,2]
[327437920,1716076239137,-978.1,0.00027397,2]
[327437921,1716076239146,-500.0,0.00027397,2]
[327437922,1716076239155,-500.0,0.00027397,2]
[327437923,1716076239165,-543.23,0.00027397,2]
[327437924,1716076239174,-643.33,0.00027397,2]
[327437925,1716076239184,-500.0,0.00027397,2]
[327437926,1716076239194,-500.0,0.00027397,2]
[327437927,1716076239204,-500.0,0.00027397,2]
[327437928,1716076239213,-500.0,0.00027397,2]
[327437929,1716076239224,-786.29,0.00027397,2]
[327437930,1716076239233,-500.0,0.00027397,2]
[327437931,1716076239243,-500.0,0.00027397,2]
[327437932,1716076239253,-500.0,0.00027397,2]
[327437933,1716076239262,-500.0,0.00027397,2]
[327437934,1716076239273,-500.0,0.00027397,2]
[327437935,1716076239282,-500.0,0.00027397,2]
[327437936,1716076239292,-500.0,0.00027397,2]
[327437937,1716076239301,-500.0,0.00027397,2]
[327437938,1716076239311,-500.0,0.00027397,2]
[327437939,1716076239320,-500.0,0.00027397,2]
[327437940,1716076239330,-500.0,0.00027397,2]
[327437941,1716076239340,-500.0,0.00027397,2]
[327437942,1716076239349,-500.0,0.00027397,2]
[327437943,1716076239359,-500.0,0.00027397,2]
[327437944,1716076239368,-500.0,0.00027397,2]
[327437945,1716076239378,-500.0,0.00027397,2]
[327437946,1716076239387,-500.0,0.00027397,2]
[327437947,1716076239397,-274.64346877,0.00027397,2]
[327437948,1716076239407,-500.0,0.00027397,2]
[327437949,1716076239416,-500.0,0.00027397,2]
[327437950,1716076239426,-500.0,0.00027397,2]
[327437951,1716076239435,-500.0,0.00027397,2]
[327437952,1716076239445,-528.43,0.00027397,2]
[327437953,1716076239454,-500.0,0.00027397,2]
[327437954,1716076239464,-500.0,0.00027397,2]
[327437955,1716076239474,-500.0,0.00027397,2]
[327437956,1716076239483,-500.0,0.00027397,2]
[327437957,1716076239493,-500.0,0.00027397,2]
[327437958,1716076239503,-881.23,0.00027397,2]
[327437959,1716076239512,-500.0,0.00027397,2]
[327437960,1716076239522,-500.0,0.00027397,2]
[327437961,1716076239532,-500.0,0.00027397,2]
[327437962,1716076239541,-500.0,0.00027397,2]
[327437963,1716076239551,-549.13,0.00027397,2]
[327437964,1716076239561,-500.0,0.00027397,2]
[327437965,1716076239571,-500.0,0.00027397,2]
[327437966,1716076239580,-500.0,0.00027397,2]
[327437967,1716076239589,-562.82,0.00027397,2]
[327437968,1716076239599,-500.0,0.00027397,2]
[327437969,1716076239608,-500.0,0.00027397,2]
[327437970,1716076239618,-639.28,0.00027397,2]
[327437971,1716076239627,-500.0,0.00027397,2]
[327437972,1716076239637,-500.0,0.00027397,2]
[327437973,1716076239647,-500.0,0.00027397,2]
[327437974,1716076239657,-500.0,0.00027397,2]
[327437975,1716076239666,-622.61,0.00027397,2]
[327437976,1716076239676,-500.0,0.00027397,2]
[327437977,1716076239685,-727.15,0.00027397,2]
[327437978,1716076239694,-588.6,0.00027397,2]
[327437979,1716076239703,-500.0,0.00027397,2]
[327437980,1716076239715,-500.0,0.00027397,2]
[327437981,1716076239725,-500.0,0.00027397,2]
[327437982,1716076239734,-500.0,0.00027397,2]
[327437983,1716076239743,-500.0,0.00027397,2]
[327437984,1716076239752,-500.0,0.00027397,2]
[327437985,1716076239762,-262.05626811,0.00027397,2]
[327437986,1716076239771,-500.0,0.00027397,2]
[327437987,1716076239780,-500.0,0.00027397,2]
[327437988,1716076239790,-500.0,0.00027397,2]
[327437989,1716076239799,-500.0,0.00027397,2]
[327437990,1716076239809,-500.0,0.00027397,2]
[327437991,1716076239818,-500.0,0.00027397,2]
[327437992,1716076239827,-500.0,0.00027397,2]
[327437993,1716076239836,-500.0,0.00027397,2]
[327437994,1716076239845,-500.0,0.00027397,2]
[327437996,1716076239854,-500.0,0.00027397,2]
[327437997,1716076239863,-500.0,0.00027397,2]
[327437998,1716076239873,-500.0,0.00027397,2]
[327437999,1716076239882,-500.0,0.00027397,2]
[327438001,1716076239891,-500.0,0.00027397,2]
[327438003,1716076239900,-500.0,0.00027397,2]
[327438004,1716076239910,-500.0,0.00027397,2]
[327438005,1716076239919,-500.0,0.00027397,2]
[327438006,1716076239928,-500.0,0.00027397,2]
[327438007,1716076239938,-500.0,0.00027397,2]
[327438008,1716076239947,-500.0,0.00027397,2]
[327438009,1716076239956,-500.0,0.00027397,2]
[327438010,1716076239966,-500.0,0.00027397,2]
[327438011,1716076239975,-500.0,0.00027397,2]
[327438012,1716076239984,-500.0,0.00027397,2]
[327438013,1716076239994,-500.0,0.00027397,2]
[327438014,1716076240005,-500.0,0.00027397,2]
[327438015,1716076240015,-512.48120065,0.00027397,2]
[327438016,1716076240024,-500.0,0.00027397,2]
[327438017,1716076240033,-500.0,0.00027397,2]
[327438018,1716076240043,-500.0,0.00027397,2]
[327438019,1716076240052,-500.0,0.00027397,2]
[327438020,1716076240062,-500.0,0.00027397,2]
[327438021,1716076240073,-500.0,0.00027397,2]
[327438022,1716076240082,-623.35,0.00027397,2]
[327438023,1716076240091,-500.0,0.00027397,2]
[327438024,1716076240101,-500.0,0.00027397,2]
[327438025,1716076240110,-525.09249059,0.00027397,2]
[327438026,1716076240119,-500.0,0.00027397,2]
[327438027,1716076240128,-500.0,0.00027397,2]
[327438028,1716076240137,-500.0,0.00027397,2]
[327438029,1716076240147,-500.0,0.00027397,2]
[327438030,1716076240156,-500.0,0.00027397,2]
[327438031,1716076240166,-500.0,0.00027397,2]
[327438032,1716076240175,-216.75313844,0.00027397,2]
[327438033,1716076240184,-500.0,0.00027397,2]
[327438034,1716076240193,-704.84,0.00027397,2]
[327438035,1716076240202,-500.0,0.00027397,2]
[327438036,1716076240211,-792.99,0.00027397,2]
[327438037,1716076240221,-500.0,0.00027397,2]
[327438038,1716076240231,-646.52,0.00027397,2]
[327438040,1716076240240,-500.0,0.00027397,2]
[327438041,1716076240453,-500.0,0.00027397,2]
[327438042,1716076240463,-500.0,0.00027397,2]
[327438043,1716076240472,-503.43,0.00027397,2]
[327438044,1716076240482,-500.0,0.00027397,2]
[327438045,1716076240492,-916.71,0.00027397,2]
[327438046,1716076240502,-500.0,0.00027397,2]
[327438047,1716076240512,-833.68,0.00027397,2]
[327438049,1716076240521,-500.0,0.00027397,2]
[327438051,1716076240531,-500.0,0.00027397,2]
[327438053,1716076240541,-500.0,0.00027397,2]
[327438054,1716076240551,-546.11,0.00027397,2]
[327438055,1716076240560,-500.0,0.00027397,2]
[327438056,1716076240570,-500.0,0.00027397,2]
[327438057,1716076240580,-500.0,0.00027397,2]
[327438058,1716076240590,-500.0,0.00027397,2]
[327438059,1716076240600,-500.0,0.00027397,2]
[327438060,1716076240610,-724.05,0.00027397,2]
[327438061,1716076240620,-522.04687139,0.00027397,2]
[327438062,1716076240629,-1333.61,0.00027397,2]
[327438063,1716076240639,-500.0,0.00027397,2]
[327438064,1716076240650,-500.0,0.00027397,2]
[327438065,1716076240659,-500.0,0.00027397,2]
[327438066,1716076240669,-500.0,0.00027397,2]
[327438067,1716076240678,-500.0,0.00027397,2]
[327438068,1716076240688,-661.81,0.00027397,2]
[327438069,1716076240698,-500.0,0.00027397,2]
[327438070,1716076240707,-504.94892508,0.00027397,2]
[327438071,1716076240717,-500.0,0.00027397,2]
[327438072,1716076240727,-500.0,0.00027397,2]
[327438073,1716076240736,-500.0,0.00027397,2]
[327438074,1716076240746,-1000.0,0.00027397,2]
[327438075,1716076240755,-401.42749512,0.00027397,2]
[327438076,1716076240765,-500.0,0.00027397,2]
[327438077,1716076240775,-518.1,0.00027397,2]
[327438078,1716076240784,-500.0,0.00027397,2]
[327438079,1716076240795,-500.0,0.00027397,2]
[327438080,1716076240804,-500.0,0.00027397,2]
[327438081,1716076240814,-501.31,0.00027397,2]
[327438082,1716076240823,-500.0,0.00027397,2]
[327438083,1716076240834,-594.76,0.00027397,2]
[327438084,1716076240843,-500.0,0.00027397,2]
[327438085,1716076240853,-500.0,0.00027397,2]
[327438086,1716076240862,-500.0,0.00027397,2]
[327438087,1716076240872,-500.0,0.00027397,2]
[327438088,1716076240881,-500.0,0.00027397,2]
[327438089,1716076240891,-500.0,0.00027397,2]
[327438090,1716076240901,-1024.03,0.00027397,2]
[327438091,1716076240910,-500.0,0.00027397,2]
[327438092,1716076240920,-503.95358985,0.00027397,2]
[327438093,1716076240929,-560.03,0.00027397,2]
[327438094,1716076240939,-1140.83,0.00027397,2]
[327438095,1716076240948,-771.12,0.00027397,2]
[327438096,1716076240958,-994.99,0.00027397,2]
[327438097,1716076240968,-533.85108412,0.00027397,2]
[327438098,1716076240978,-500.0,0.00027397,2]
[327438099,1716076240987,-500.0,0.00027397,2]
[327438100,1716076240997,-500.0,0.00027397,2]
[327438101,1716076241008,-887.21,0.00027397,2]
[327438102,1716076241021,-500.0,0.00027397,2]
[327438103,1716076241032,-500.0,0.00027397,2]
[327438104,1716076241042,-924.46,0.00027397,2]
[327438105,1716076241052,-641.81,0.00027397,2]
[327438106,1716076241061,-503.48257653,0.00027397,2]
[327438107,1716076241071,-1131.14,0.00027397,2]
[327438108,1716076241081,-500.0,0.00027397,2]
[327438109,1716076241091,-500.0,0.00027397,2]
[327438110,1716076241101,-500.0,0.00027397,2]
[327438111,1716076241111,-500.0,0.00027397,2]
[327438112,1716076241120,-500.0,0.00027397,2]
[327438113,1716076241131,-627.99,0.00027397,2]
[327438114,1716076241140,-962.91,0.00027397,2]
[327438115,1716076241150,-648.89,0.00027397,2]
[327438116,1716076241160,-500.0,0.00027397,2]
[327438117,1716076241170,-500.0,0.00027397,2]
[327438118,1716076241179,-814.72,0.00027397,2]
[327438119,1716076241188,-550.28,0.00027397,2]
[327438120,1716076241198,-500.0,0.00027397,2]
[327438121,1716076241207,-500.0,0.00027397,2]
[327438122,1716076241216,-852.47,0.00027397,2]
[327438123,1716076241226,-181.37,0.00027397,2]
[327438124,1716076241236,-500.0,0.00027397,2]
[327438125,1716076241245,-550.4,0.00027397,2]
[327438126,1716076241254,-511.07,0.00027397,2]
[327438127,1716076241264,-506.6002805,0.00027397,2]
[327438128,1716076241273,-500.0,0.00027397,2]
[327438129,1716076241281,-670.64,0.00027397,2]
[327438130,1716076241291,-645.36,0.00027397,2]
[327438131,1716076241300,-500.0,0.00027397,2]
[327438132,1716076241309,-757.24,0.00027397,2]
[327438133,1716076241319,-660.17,0.00027397,2]
[327438134,1716076241328,-804.91,0.00027397,2]
[327438135,1716076241337,-505.18,0.00027397,2]
[327438136,1716076241346,-500.0,0.00027397,2]
[327438137,1716076241355,-890.17,0.00027397,2]
[327438138,1716076241365,-500.0,0.00027397,2]
[327438139,1716076241374,-500.0,0.00027397,2]
[327438140,1716076241383,-823.19,0.00027397,2]
[327438141,1716076241392,-517.26931466,0.00027397,2]
[327438142,1716076241401,-500.0,0.00027397,2]
[327438143,1716076241411,-500.0,0.00027397,2]
[327438144,1716076241420,-500.0,0.00027397,2]
[327438145,1716076241430,-937.41,0.00027397,2]
[327438146,1716076241439,-500.0,0.00027397,2]
[327438147,1716076241448,-500.0,0.00027397,2]
[327438148,1716076241457,-500.0,0.00027397,2]
[327438149,1716076241467,-500.0,0.00027397,2]
[327438150,1716076241476,-500.0,0.00027397,2]
[327438151,1716076241486,-1353.13,0.00027397,2]
[327438152,1716076241496,-500.0,0.00027397,2]
[327438153,1716076241505,-954.82,0.00027397,2]
[327438154,1716076241514,-858.85,0.00027397,2]
[327438155,1716076241523,-500.0,0.00027397,2]
[327438156,1716076241533,-500.0,0.00027397,2]
[327438157,1716076241542,-500.0,0.00027397,2]
[327438158,1716076241551,-500.0,0.00027397,2]
[327438159,1716076241561,-756.16,0.00027397,2]
[327438160,1716076241571,-500.0,0.00027397,2]
[327438161,1716076241580,-500.0,0.00027397,2]
[327438162,1716076241589,-955.58,0.00027397,2]
[327438163,1716076241599,-764.58,0.00027397,2]
[327438164,1716076241608,-500.0,0.00027397,2]
[327438165,1716076241617,-731.99,0.00027397,2]
[327438166,1716076241626,-551.08,0.00027397,2]
[327438167,1716076241636,-556.93,0.00027397,2]
[327438168,1716076241645,-500.0,0.00027397,2]
[327438169,1716076241655,-500.0,0.00027397,2]
[327438170,1716076241664,-515.82,0.00027397,2]
[327438171,1716076241673,-749.36,0.00027397,2]
[327438172,1716076241683,-1507.83,0.00027397,2]
[327438173,1716076241692,-500.0,0.00027397,2]
[327438174,1716076241701,-500.0,0.00027397,2]
[327438175,1716076241711,-1054.11,0.00027397,2]
[327438176,1716076241720,-500.0,0.00027397,2]
[327438177,1716076241730,-500.0,0.00027397,2]
[327438178,1716076241739,-740.98,0.00027397,2]
[327438179,1716076241749,-971.94,0.00027397,2]
[327438180,1716076241758,-500.0,0.00027397,2]
[327438181,1716076241768,-553.76,0.00027397,2]
[327438182,1716076241777,-500.0,0.00027397,2]
[327438183,1716076241787,-500.0,0.00027397,2]
[327438184,1716076241796,-500.0,0.00027397,2]
[327438185,1716076241806,-500.0,0.00027397,2]
[327438186,1716076241815,-500.0,0.00027397,2]
[327438187,1716076241824,-500.0,0.00027397,2]
[327438188,1716076241834,-500.0,0.00027397,2]
[327438189,1716076241843,-500.0,0.00027397,2]
[327438190,1716076241852,-500.0,0.00027397,2]
[327438191,1716076241862,-500.0,0.00027397,2]
[327438192,1716076241871,-500.0,0.00027397,2]
[327438193,1716076241880,-500.0,0.00027397,2]
[327438194,1716076241890,-500.0,0.00027397,2]
[327438195,1716076241899,-500.0,0.00027397,2]
[327438196,1716076241908,-500.0,0.00027397,2]
[327438197,1716076241918,-500.0,0.00027397,2]
[327438198,1716076241927,-500.0,0.00027397,2]
[327438199,1716076241936,-500.0,0.00027397,2]
[327438200,1716076241945,-500.0,0.00027397,2]
[327438201,1716076241955,-500.0,0.00027397,2]
[327438202,1716076241965,-502.25,0.00027397,2]
[327438203,1716076241975,-500.0,0.00027397,2]
[327438204,1716076241984,-500.0,0.00027397,2]
[327438205,1716076241993,-500.0,0.00027397,2]
[327438206,1716076242003,-583.19,0.00027397,2]
[327438207,1716076242016,-500.0,0.00027397,2]
[327438208,1716076242025,-500.0,0.00027397,2]
[327438209,1716076242035,-434.93935768,0.00027397,2]
[327438210,1716076242044,-500.0,0.00027397,2]
[327438211,1716076242054,-500.0,0.00027397,2]
[327438212,1716076242063,-500.0,0.00027397,2]
[327438213,1716076242073,-500.0,0.00027397,2]
[327438214,1716076242082,-531.31,0.00027397,2]
[327438215,1716076242092,-537.61,0.00027397,2]
[327438216,1716076242101,-712.76,0.00027397,2]
[327438217,1716076242110,-500.0,0.00027397,2]
[327438218,1716076242119,-500.0,0.00027397,2]
[327438219,1716076242129,-500.0,0.00027397,2]
[327438220,1716076242138,-500.0,0.00027397,2]
[327438221,1716076242148,-500.0,0.00027397,2]
[327438222,1716076242158,-500.0,0.00027397,2]
[327438223,1716076242167,-598.35699507,0.00027397,2]
[327438224,1716076242176,-872.31,0.00027397,2]
[327438225,1716076242185,-1444.71,0.00027397,2]
[327438226,1716076242195,-500.0,0.00027397,2]
[327438227,1716076242204,-500.0,0.00027397,2]
[327438228,1716076242213,-688.73,0.00027397,2]
[327438229,1716076242222,-500.0,0.00027397,2]
[327438230,1716076242232,-500.0,0.00027397,2]
[327438231,1716076242241,-500.0,0.00027397,2]
[327438232,1716076242250,-646.82,0.00027397,2]
[327438233,1716076242259,-533.98,0.00027397,2]
[327438234,1716076242269,-541.21,0.00027397,2]
[327438235,1716076242278,-500.0,0.00027397,2]
[327438236,1716076242287,-500.0,0.00027397,2]
[327438237,1716076242296,-500.0,0.00027397,2]
[327438238,1716076242305,-500.0,0.00027397,2]
[327438239,1716076242314,-500.0,0.00027397,2]
[327438240,1716076242324,-510.5,0.00027397,2]
[327438241,1716076242333,-500.0,0.00027397,2]
[327438242,1716076242342,-500.0,0.00027397,2]
[327438243,1716076242351,-500.0,0.00027397,2]
[327438244,1716076242361,-1549.39,0.00027397,2]
[327438245,1716076242370,-500.0,0.00027397,2]
[327438246,1716076242379,-215.9248245,0.00027397,2]
[327438247,1716076242388,-507.19131082,0.00027397,2]
[327438248,1716076242398,-1367.27,0.00027397,2]
[327438249,1716076242408,-500.0,0.00027397,2]
[327438250,1716076242417,-500.0,0.00027397,2]
[327438251,1716076242427,-597.48,0.00027397,2]
[327438252,1716076242436,-521.97,0.00027397,2]
[327438253,1716076242445,-500.0,0.00027397,2]
[327438254,1716076242455,-500.0,0.00027397,2]
[327438255,1716076242464,-500.0,0.00027397,2]
[327438256,1716076242473,-500.0,0.00027397,2]
[327438257,1716076242482,-154.36476834,0.00027397,2]
[327438258,1716076242491,-561.35,0.00027397,2]
[327438259,1716076242501,-587.86006431,0.00027397,2]